[Event "Live Chess"]
[Site "Chess.com"]
[Date "2011.01.26"]
[Round "-"]
[White "XOIOX"]
[Black "hipposcottimus"]
[Result "1-0"]
[CurrentPosition "8/pR6/8/7P/5pP1/8/r2k1PK1/2q5 b - -"]
[Timezone "UTC"]
[ECO "C21"]
[ECOUrl "https://www.chess.com/openings/Center-Game-Accepted-Kieseritzky-Lanc-Arnold-Gambit"]
[UTCDate "2011.01.26"]
[UTCTime "17:51:46"]
[WhiteElo "1200"]
[BlackElo "1642"]
[TimeControl "60"]
[Termination "XOIOX won on time"]
[StartTime "17:51:46"]
[EndDate "2011.01.26"]
[EndTime "17:54:08"]
[Link "https://www.chess.com/game/live/91628489"]

1. e4 {[%clk 0:01:00]} 1... e5 {[%clk 0:01:00]} 2. d4 {[%clk 0:00:59.6]} 2... exd4 {[%clk 0:00:58.6]} 3. Nf3 {[%clk 0:00:58.9]} 3... Bc5 {[%clk 0:00:56.3]} 4. c3 {[%clk 0:00:58.1]} 4... d6 {[%clk 0:00:55.5]} 5. cxd4 {[%clk 0:00:57.3]} 5... Bb6 {[%clk 0:00:55.3]} 6. Bd3 {[%clk 0:00:55.2]} 6... Qe7 {[%clk 0:00:54.7]} 7. Be3 {[%clk 0:00:54]} 7... Nf6 {[%clk 0:00:54.2]} 8. e5 {[%clk 0:00:51.2]} 8... dxe5 {[%clk 0:00:51.4]} 9. dxe5 {[%clk 0:00:50.4]} 9... Nd5 {[%clk 0:00:51.1]} 10. Bxb6 {[%clk 0:00:48.9]} 10... Nxb6 {[%clk 0:00:50.9]} 11. O-O {[%clk 0:00:47.8]} 11... Bg4 {[%clk 0:00:49.5]} 12. Re1 {[%clk 0:00:45.6]} 12... O-O {[%clk 0:00:47.9]} 13. Nc3 {[%clk 0:00:45]} 13... c6 {[%clk 0:00:45.3]} 14. Be4 {[%clk 0:00:43.5]} 14... N8d7 {[%clk 0:00:43.9]} 15. h3 {[%clk 0:00:42.6]} 15... Bh5 {[%clk 0:00:41.8]} 16. Qd6 {[%clk 0:00:41.8]} 16... Bxf3 {[%clk 0:00:40.3]} 17. Qxe7 {[%clk 0:00:40.5]} 17... Nxe5 {[%clk 0:00:39.7]} 18. Qxe5 {[%clk 0:00:36.5]} 18... f6 {[%clk 0:00:39.4]} 19. Qg3 {[%clk 0:00:34.9]} 19... Bxe4 {[%clk 0:00:34.6]} 20. Nxe4 {[%clk 0:00:33.4]} 20... f5 {[%clk 0:00:34.4]} 21. Nd2 {[%clk 0:00:30.8]} 21... f4 {[%clk 0:00:34.1]} 22. Qg4 {[%clk 0:00:28.7]} 22... Nd5 {[%clk 0:00:33.8]} 23. Nf3 {[%clk 0:00:27.8]} 23... Rae8 {[%clk 0:00:32.9]} 24. Qh5 {[%clk 0:00:26.6]} 24... Rxe1+ {[%clk 0:00:32.1]} 25. Rxe1 {[%clk 0:00:24.8]} 25... Nf6 {[%clk 0:00:31.8]} 26. Qh4 {[%clk 0:00:23]} 26... h6 {[%clk 0:00:29.5]} 27. g3 {[%clk 0:00:19.8]} 27... g5 {[%clk 0:00:29.2]} 28. Nxg5 {[%clk 0:00:18.2]} 28... hxg5 {[%clk 0:00:27.4]} 29. Qxg5+ {[%clk 0:00:17.8]} 29... Kf7 {[%clk 0:00:26.3]} 30. Qc5 {[%clk 0:00:15.4]} 30... Kg6 {[%clk 0:00:25.5]} 31. Qc1 {[%clk 0:00:15]} 31... Kg7 {[%clk 0:00:24.3]} 32. Re6 {[%clk 0:00:14.5]} 32... Nh5 {[%clk 0:00:24]} 33. g4 {[%clk 0:00:12.9]} 33... Nf6 {[%clk 0:00:18.5]} 34. Qc4 {[%clk 0:00:12.2]} 34... Rd8 {[%clk 0:00:17.7]} 35. Qe4 {[%clk 0:00:11.6]} 35... Rd1+ {[%clk 0:00:16.6]} 36. Kg2 {[%clk 0:00:11.2]} 36... Nxe4 {[%clk 0:00:15.9]} 37. Re7+ {[%clk 0:00:10.6]} 37... Kf6 {[%clk 0:00:13.7]} 38. Rxe4 {[%clk 0:00:10.5]} 38... Rd2 {[%clk 0:00:13.2]} 39. Re8 {[%clk 0:00:09.9]} 39... Rxb2 {[%clk 0:00:12.5]} 40. Rf8+ {[%clk 0:00:09.5]} 40... Ke7 {[%clk 0:00:11]} 41. Rb8 {[%clk 0:00:08]} 41... Rxa2 {[%clk 0:00:10.5]} 42. Rxb7+ {[%clk 0:00:07.4]} 42... Kd6 {[%clk 0:00:09]} 43. Rg7 {[%clk 0:00:07]} 43... c5 {[%clk 0:00:08.2]} 44. Rg6+ {[%clk 0:00:06.7]} 44... Kd5 {[%clk 0:00:07.8]} 45. Rg5+ {[%clk 0:00:06.3]} 45... Kd4 {[%clk 0:00:06.7]} 46. Rg7 {[%clk 0:00:06.2]} 46... c4 {[%clk 0:00:06.2]} 47. h4 {[%clk 0:00:06.1]} 47... c3 {[%clk 0:00:04.9]} 48. h5 {[%clk 0:00:06]} 48... c2 {[%clk 0:00:04.5]} 49. Rc7 {[%clk 0:00:05.9]} 49... c1=Q {[%clk 0:00:02.8]} 50. Rd7+ {[%clk 0:00:05.5]} 50... Kc3 {[%clk 0:00:01]} 51. Rc7+ {[%clk 0:00:04.3]} 51... Kd2 {[%clk 0:00:00.7]} 52. Rb7 {[%clk 0:00:03.8]} 1-0

[Event "Live Chess"]
[Site "Chess.com"]
[Date "2011.01.26"]
[Round "-"]
[White "hipposcottimus"]
[Black "XOIOX"]
[Result "0-1"]
[CurrentPosition "3r4/pknr4/1np5/5R1R/1b6/2PP4/PP4PP/6K1 w - -"]
[Timezone "UTC"]
[ECO "C42"]
[ECOUrl "https://www.chess.com/openings/Petrovs-Defense-Urusov-Gambit"]
[UTCDate "2011.01.26"]
[UTCTime "17:49:09"]
[WhiteElo "1642"]
[BlackElo "1200"]
[TimeControl "60"]
[Termination "XOIOX won on time"]
[StartTime "17:49:09"]
[EndDate "2011.01.26"]
[EndTime "17:51:17"]
[Link "https://www.chess.com/game/live/91627773"]

1. e4 {[%clk 0:01:00]} 1... e5 {[%clk 0:01:00]} 2. Nf3 {[%clk 0:00:59.7]} 2... Nf6 {[%clk 0:00:59.5]} 3. Bc4 {[%clk 0:00:59.5]} 3... d6 {[%clk 0:00:58.6]} 4. Ng5 {[%clk 0:00:57.2]} 4... d5 {[%clk 0:00:56.4]} 5. exd5 {[%clk 0:00:56.4]} 5... Nxd5 {[%clk 0:00:55.5]} 6. Nxf7 {[%clk 0:00:54.5]} 6... Kxf7 {[%clk 0:00:54.4]} 7. Qf3+ {[%clk 0:00:53.7]} 7... Ke6 {[%clk 0:00:52.1]} 8. Nc3 {[%clk 0:00:52.3]} 8... c6 {[%clk 0:00:50.6]} 9. d3 {[%clk 0:00:45.6]} 9... h6 {[%clk 0:00:48.8]} 10. O-O {[%clk 0:00:43.8]} 10... Qf6 {[%clk 0:00:47]} 11. Qe4 {[%clk 0:00:41.1]} 11... Nd7 {[%clk 0:00:44.5]} 12. f4 {[%clk 0:00:39.8]} 12... Nb6 {[%clk 0:00:42.1]} 13. fxe5 {[%clk 0:00:38.4]} 13... Qxe5 {[%clk 0:00:40.5]} 14. Qg6+ {[%clk 0:00:37.2]} 14... Kd7 {[%clk 0:00:33.3]} 15. Rf7+ {[%clk 0:00:36]} 15... Kd8 {[%clk 0:00:29.6]} 16. Bf4 {[%clk 0:00:27.4]} 16... Qe6 {[%clk 0:00:27.1]} 17. Bc7+ {[%clk 0:00:23.4]} 17... Nxc7 {[%clk 0:00:22]} 18. Bxe6 {[%clk 0:00:17]} 18... Bxe6 {[%clk 0:00:20.1]} 19. Qxe6 {[%clk 0:00:16.6]} 19... Nxe6 {[%clk 0:00:19]} 20. Ne4 {[%clk 0:00:16.4]} 20... Ke8 {[%clk 0:00:17.4]} 21. Nd6+ {[%clk 0:00:15.3]} 21... Bxd6 {[%clk 0:00:14.8]} 22. Rxb7 {[%clk 0:00:15]} 22... Rd8 {[%clk 0:00:13.1]} 23. Rxg7 {[%clk 0:00:14]} 23... Bf8 {[%clk 0:00:11.8]} 24. Rg3 {[%clk 0:00:12.3]} 24... Nc7 {[%clk 0:00:10.7]} 25. Re3+ {[%clk 0:00:11.6]} 25... Kd7 {[%clk 0:00:10.6]} 26. Rf1 {[%clk 0:00:11]} 26... Kc8 {[%clk 0:00:10.5]} 27. Rf7 {[%clk 0:00:09.9]} 27... Bd6 {[%clk 0:00:10.4]} 28. Ref3 {[%clk 0:00:09.3]} 28... Rd7 {[%clk 0:00:09.6]} 29. R7f5 {[%clk 0:00:07.2]} 29... Rhd8 {[%clk 0:00:09]} 30. Rh3 {[%clk 0:00:05.6]} 30... Kb7 {[%clk 0:00:08.9]} 31. Rxh6 {[%clk 0:00:04.6]} 31... Ka6 {[%clk 0:00:08.8]} 32. Rhh5 {[%clk 0:00:02.6]} 32... Bb4 {[%clk 0:00:08.7]} 33. c3 {[%clk 0:00:01.1]} 33... Kb7 {[%clk 0:00:08.3]} 0-1

[Event "Live Chess"]
[Site "Chess.com"]
[Date "2011.01.26"]
[Round "-"]
[White "hipposcottimus"]
[Black "Mamzelle_Angelle"]
[Result "0-1"]
[CurrentPosition "5nk1/p1N4p/1pp3p1/5p2/3b4/6P1/P5PK/4r3 w - -"]
[Timezone "UTC"]
[ECO "B01"]
[ECOUrl "https://www.chess.com/openings/Scandinavian-Defense-Mieses-Kotrc-Main-Line-4.d4-c6"]
[UTCDate "2011.01.26"]
[UTCTime "17:46:30"]
[WhiteElo "1642"]
[BlackElo "1578"]
[TimeControl "60"]
[Termination "Mamzelle_Angelle won on time"]
[StartTime "17:46:30"]
[EndDate "2011.01.26"]
[EndTime "17:48:34"]
[Link "https://www.chess.com/game/live/91626960"]

1. e4 {[%clk 0:01:00]} 1... d5 {[%clk 0:01:00]} 2. exd5 {[%clk 0:00:58.9]} 2... Qxd5 {[%clk 0:00:59.9]} 3. Nc3 {[%clk 0:00:58.5]} 3... Qa5 {[%clk 0:00:59.8]} 4. d4 {[%clk 0:00:57.2]} 4... c6 {[%clk 0:00:59.7]} 5. Bd2 {[%clk 0:00:56.6]} 5... Qb6 {[%clk 0:00:59.2]} 6. Nf3 {[%clk 0:00:54.8]} 6... Qxb2 {[%clk 0:00:58]} 7. Rb1 {[%clk 0:00:49.9]} 7... Qa3 {[%clk 0:00:56.8]} 8. Bc4 {[%clk 0:00:44.7]} 8... Qd6 {[%clk 0:00:55.6]} 9. Ne5 {[%clk 0:00:43.5]} 9... e6 {[%clk 0:00:54]} 10. O-O {[%clk 0:00:41.6]} 10... Nf6 {[%clk 0:00:53]} 11. f4 {[%clk 0:00:40.1]} 11... Be7 {[%clk 0:00:52.1]} 12. Qe2 {[%clk 0:00:34.9]} 12... O-O {[%clk 0:00:50.7]} 13. Ne4 {[%clk 0:00:34.2]} 13... Nxe4 {[%clk 0:00:49.5]} 14. Qxe4 {[%clk 0:00:33.8]} 14... b6 {[%clk 0:00:47.2]} 15. Bd3 {[%clk 0:00:33.2]} 15... g6 {[%clk 0:00:45.1]} 16. f5 {[%clk 0:00:30.6]} 16... exf5 {[%clk 0:00:43.9]} 17. Qf3 {[%clk 0:00:23.8]} 17... Ba6 {[%clk 0:00:42.2]} 18. Bh6 {[%clk 0:00:18.8]} 18... Re8 {[%clk 0:00:39]} 19. Qg3 {[%clk 0:00:12.5]} 19... Bxd3 {[%clk 0:00:35.8]} 20. cxd3 {[%clk 0:00:11.3]} 20... Bf8 {[%clk 0:00:34.3]} 21. Bg5 {[%clk 0:00:10]} 21... Bg7 {[%clk 0:00:32.6]} 22. Nf3 {[%clk 0:00:05.2]} 22... Qxg3 {[%clk 0:00:30.9]} 23. hxg3 {[%clk 0:00:05]} 23... f6 {[%clk 0:00:28.2]} 24. Kh1 {[%clk 0:00:04.6]} 24... fxg5 {[%clk 0:00:27.1]} 25. Nxg5 {[%clk 0:00:04.3]} 25... Bxd4 {[%clk 0:00:25.3]} 26. Rbe1 {[%clk 0:00:04]} 26... Rxe1 {[%clk 0:00:23.3]} 27. Rxe1 {[%clk 0:00:03.8]} 27... Nd7 {[%clk 0:00:22.8]} 28. Ne6 {[%clk 0:00:03.4]} 28... Bc5 {[%clk 0:00:19.4]} 29. Nc7 {[%clk 0:00:03.1]} 29... Rc8 {[%clk 0:00:18]} 30. Ne6 {[%clk 0:00:02.7]} 30... Re8 {[%clk 0:00:16.6]} 31. d4 {[%clk 0:00:02.3]} 31... Nf8 {[%clk 0:00:14.2]} 32. Nc7 {[%clk 0:00:01]} 32... Rxe1+ {[%clk 0:00:13]} 33. Kh2 {[%clk 0:00:00.8]} 33... Bxd4 {[%clk 0:00:12.4]} 0-1

[Event "Live Chess"]
[Site "Chess.com"]
[Date "2011.01.26"]
[Round "-"]
[White "13tone"]
[Black "hipposcottimus"]
[Result "1-0"]
[CurrentPosition "r4rk1/pp1b2pp/5q2/3Qbp2/8/4PN1P/PP2NPP1/R4RK1 b - -"]
[Timezone "UTC"]
[ECO "D10"]
[ECOUrl "https://www.chess.com/openings/Slav-Defense-3.e3-e6"]
[UTCDate "2011.01.26"]
[UTCTime "17:40:30"]
[WhiteElo "1505"]
[BlackElo "1434"]
[TimeControl "120+12"]
[Termination "13tone won by resignation"]
[StartTime "17:40:30"]
[EndDate "2011.01.26"]
[EndTime "17:43:52"]
[Link "https://www.chess.com/game/live/91625275"]

1. d4 {[%clk 0:02:00]} 1... d5 {[%clk 0:02:00]} 2. c4 {[%clk 0:02:10.1]} 2... c6 {[%clk 0:02:11.7]} 3. e3 {[%clk 0:02:17.9]} 3... e6 {[%clk 0:02:22.4]} 4. Bd3 {[%clk 0:02:27.5]} 4... Nd7 {[%clk 0:02:33.5]} 5. Ne2 {[%clk 0:02:31.3]} 5... f5 {[%clk 0:02:41.1]} 6. O-O {[%clk 0:02:39.7]} 6... Ngf6 {[%clk 0:02:51.8]} 7. Nd2 {[%clk 0:02:45.8]} 7... Bd6 {[%clk 0:03:01.9]} 8. h3 {[%clk 0:02:55.1]} 8... O-O {[%clk 0:03:13.5]} 9. Nf3 {[%clk 0:03:01.8]} 9... Ne4 {[%clk 0:03:24.7]} 10. cxd5 {[%clk 0:03:00.6]} 10... cxd5 {[%clk 0:03:31.8]} 11. Bd2 {[%clk 0:02:39.2]} 11... Qf6 {[%clk 0:03:17.2]} 12. Bb5 {[%clk 0:02:47.3]} 12... Nxd2 {[%clk 0:03:14.8]} 13. Qxd2 {[%clk 0:02:49.6]} 13... e5 {[%clk 0:03:25]} 14. Bxd7 {[%clk 0:02:54.5]} 14... Bxd7 {[%clk 0:03:36.5]} 15. dxe5 {[%clk 0:03:01.2]} 15... Bxe5 {[%clk 0:03:46.9]} 16. Qxd5+ {[%clk 0:03:11.2]} 1-0

[Event "Live Chess"]
[Site "Chess.com"]
[Date "2011.01.26"]
[Round "-"]
[White "Hustle2Hustle"]
[Black "hipposcottimus"]
[Result "0-1"]
[CurrentPosition "rn4k1/pp4p1/5rP1/3p4/b1pP1q2/B1P2p2/P4N2/R2KR3 w - -"]
[Timezone "UTC"]
[ECO "A00"]
[ECOUrl "https://www.chess.com/openings/Saragossa-Opening-1...d5"]
[UTCDate "2011.01.26"]
[UTCTime "17:31:46"]
[WhiteElo "1142"]
[BlackElo "1441"]
[TimeControl "120+10"]
[Termination "hipposcottimus won by checkmate"]
[StartTime "17:31:46"]
[EndDate "2011.01.26"]
[EndTime "17:40:35"]
[Link "https://www.chess.com/game/live/91622609"]

1. c3 {[%clk 0:02:00]} 1... d5 {[%clk 0:02:00]} 2. Na3 {[%clk 0:01:46.4]} 2... e5 {[%clk 0:02:06.1]} 3. b4 {[%clk 0:01:42.6]} 3... c5 {[%clk 0:01:52.8]} 4. b5 {[%clk 0:01:37.3]} 4... c4 {[%clk 0:01:58.4]} 5. Nf3 {[%clk 0:01:17.3]} 5... f6 {[%clk 0:01:54.9]} 6. Qc2 {[%clk 0:01:19.2]} 6... Bd7 {[%clk 0:02:02.2]} 7. d4 {[%clk 0:01:00.8]} 7... e4 {[%clk 0:01:50.8]} 8. Ng1 {[%clk 0:00:32.3]} 8... Bxa3 {[%clk 0:01:58]} 9. Bxa3 {[%clk 0:00:39.3]} 9... Bxb5 {[%clk 0:02:07.1]} 10. e3 {[%clk 0:00:37.2]} 10... Ne7 {[%clk 0:02:12.4]} 11. Be2 {[%clk 0:00:45.7]} 11... O-O {[%clk 0:02:19.5]} 12. g4 {[%clk 0:00:46.6]} 12... Rf7 {[%clk 0:02:15.9]} 13. h4 {[%clk 0:00:45.4]} 13... f5 {[%clk 0:02:23.7]} 14. g5 {[%clk 0:00:52.8]} 14... f4 {[%clk 0:02:31]} 15. Nh3 {[%clk 0:00:31]} 15... fxe3 {[%clk 0:02:35.5]} 16. fxe3 {[%clk 0:00:39.3]} 16... Ng6 {[%clk 0:02:42]} 17. h5 {[%clk 0:00:45.9]} 17... Nh4 {[%clk 0:02:44.7]} 18. Rg1 {[%clk 0:00:36.6]} 18... Nf3+ {[%clk 0:02:51.8]} 19. Bxf3 {[%clk 0:00:43.9]} 19... exf3 {[%clk 0:03:01]} 20. Nf2 {[%clk 0:00:39.8]} 20... Qe8 {[%clk 0:03:02.6]} 21. g6 {[%clk 0:00:47.8]} 21... Qxe3+ {[%clk 0:03:10.3]} 22. Kd1 {[%clk 0:00:47.7]} 22... hxg6 {[%clk 0:02:59.7]} 23. hxg6 {[%clk 0:00:45.6]} 23... Rf6 {[%clk 0:02:59]} 24. Re1 {[%clk 0:00:47.6]} 24... Qf4 {[%clk 0:02:55.2]} 25. Qa4 {[%clk 0:00:43.6]} 25... Bxa4# {[%clk 0:03:00.5]} 0-1

[Event "Live Chess"]
[Site "Chess.com"]
[Date "2011.01.26"]
[Round "-"]
[White "stacks813"]
[Black "hipposcottimus"]
[Result "1-0"]
[CurrentPosition "1k1r3r/Npp2qpp/n4n2/3p4/P2Np3/1Q2P3/5PPP/R1B2RK1 w - -"]
[Timezone "UTC"]
[ECO "D00"]
[ECOUrl "https://www.chess.com/openings/Queens-Pawn-Opening-1...d5-2.e3"]
[UTCDate "2011.01.26"]
[UTCTime "17:25:04"]
[WhiteElo "1483"]
[BlackElo "1439"]
[TimeControl "600"]
[Termination "stacks813 won by resignation"]
[StartTime "17:25:04"]
[EndDate "2011.01.26"]
[EndTime "17:28:12"]
[Link "https://www.chess.com/game/live/91620461"]

1. d4 {[%clk 0:10:00]} 1... d5 {[%clk 0:10:00]} 2. e3 {[%clk 0:09:57.6]} 2... Bf5 {[%clk 0:09:46.7]} 3. Bd3 {[%clk 0:09:54.7]} 3... Qd7 {[%clk 0:09:41.5]} 4. Nf3 {[%clk 0:09:52.6]} 4... Nc6 {[%clk 0:09:39]} 5. O-O {[%clk 0:09:48.8]} 5... O-O-O {[%clk 0:09:37]} 6. c3 {[%clk 0:09:41.4]} 6... f6 {[%clk 0:09:34.8]} 7. b4 {[%clk 0:09:38.2]} 7... e5 {[%clk 0:09:33.1]} 8. Bxf5 {[%clk 0:09:34.4]} 8... Qxf5 {[%clk 0:09:29.3]} 9. dxe5 {[%clk 0:09:30.4]} 9... fxe5 {[%clk 0:09:20.2]} 10. a4 {[%clk 0:09:23.5]} 10... Bxb4 {[%clk 0:09:07.3]} 11. cxb4 {[%clk 0:09:13.5]} 11... Nxb4 {[%clk 0:09:05.9]} 12. Qb3 {[%clk 0:09:06.5]} 12... Na6 {[%clk 0:08:53.3]} 13. Nc3 {[%clk 0:08:54.2]} 13... e4 {[%clk 0:08:50.7]} 14. Nd4 {[%clk 0:08:50.3]} 14... Qf7 {[%clk 0:08:33.9]} 15. Ncb5 {[%clk 0:08:44.4]} 15... Nf6 {[%clk 0:08:27.3]} 16. Nxa7+ {[%clk 0:08:38.8]} 16... Kb8 {[%clk 0:08:21.5]} 1-0

[Event "Live Chess"]
[Site "Chess.com"]
[Date "2011.01.26"]
[Round "-"]
[White "yankee5"]
[Black "hipposcottimus"]
[Result "0-1"]
[CurrentPosition "6k1/5ppp/8/p4P2/1p4K1/5P2/P6P/3q4 b - -"]
[Timezone "UTC"]
[ECO "C20"]
[ECOUrl "https://www.chess.com/openings/Kings-Pawn-Opening-Wayward-Queen-Kiddie-Countergambit"]
[UTCDate "2011.01.26"]
[UTCTime "02:17:01"]
[WhiteElo "1245"]
[BlackElo "1446"]
[TimeControl "600"]
[Termination "hipposcottimus won by resignation"]
[StartTime "02:17:01"]
[EndDate "2011.01.26"]
[EndTime "02:28:50"]
[Link "https://www.chess.com/game/live/91421905"]

1. e4 {[%clk 0:10:00]} 1... e5 {[%clk 0:10:00]} 2. Qh5 {[%clk 0:09:57.3]} 2... Nf6 {[%clk 0:09:58.4]} 3. Qxe5+ {[%clk 0:09:54.9]} 3... Be7 {[%clk 0:09:58.1]} 4. d4 {[%clk 0:09:52.1]} 4... O-O {[%clk 0:09:56.9]} 5. Bg5 {[%clk 0:09:49.2]} 5... Nc6 {[%clk 0:09:52.2]} 6. Qf4 {[%clk 0:09:45.7]} 6... Nxd4 {[%clk 0:09:43.7]} 7. Bd3 {[%clk 0:09:34.7]} 7... Nd5 {[%clk 0:09:10.9]} 8. Bxe7 {[%clk 0:09:18.3]} 8... Nxe7 {[%clk 0:09:08.6]} 9. e5 {[%clk 0:09:08.9]} 9... Ne6 {[%clk 0:08:53.7]} 10. Qe4 {[%clk 0:09:06.7]} 10... Ng6 {[%clk 0:08:39.6]} 11. g3 {[%clk 0:09:01.8]} 11... d5 {[%clk 0:08:37.8]} 12. Qe3 {[%clk 0:08:57.9]} 12... d4 {[%clk 0:08:36.4]} 13. Qe4 {[%clk 0:08:48]} 13... Nc5 {[%clk 0:08:32.5]} 14. Qe2 {[%clk 0:08:40.4]} 14... Nxe5 {[%clk 0:08:25.9]} 15. Qh5 {[%clk 0:08:13.8]} 15... Nexd3+ {[%clk 0:08:15.2]} 16. cxd3 {[%clk 0:08:00.5]} 16... Nxd3+ {[%clk 0:08:08.2]} 17. Kf1 {[%clk 0:07:18.2]} 17... b6 {[%clk 0:08:00.4]} 18. Qd1 {[%clk 0:07:08.7]} 18... a5 {[%clk 0:07:50.4]} 19. Qxd3 {[%clk 0:07:04]} 19... Ba6 {[%clk 0:07:48.3]} 20. Qxa6 {[%clk 0:07:01.6]} 20... Rxa6 {[%clk 0:07:46.8]} 21. Nf3 {[%clk 0:06:57.9]} 21... b5 {[%clk 0:07:45.1]} 22. Kg2 {[%clk 0:06:56.8]} 22... Rf6 {[%clk 0:07:42]} 23. Rd1 {[%clk 0:06:54.1]} 23... d3 {[%clk 0:07:39.3]} 24. Nc3 {[%clk 0:06:37.4]} 24... b4 {[%clk 0:07:29.6]} 25. Ne2 {[%clk 0:06:22.4]} 25... Qd5 {[%clk 0:07:08]} 26. Nf4 {[%clk 0:06:14.3]} 26... Rxf4 {[%clk 0:06:36.4]} 27. gxf4 {[%clk 0:06:05.6]} 27... Re8 {[%clk 0:06:27.2]} 28. Rd2 {[%clk 0:05:51.6]} 28... Re2 {[%clk 0:06:12.8]} 29. Rad1 {[%clk 0:05:40.1]} 29... Rxd2 {[%clk 0:05:45.9]} 30. Rxd2 {[%clk 0:05:35.8]} 30... c5 {[%clk 0:05:31.6]} 31. Kg3 {[%clk 0:05:34.1]} 31... c4 {[%clk 0:05:28.3]} 32. Rd1 {[%clk 0:05:16.5]} 32... c3 {[%clk 0:05:18.2]} 33. Ne1 {[%clk 0:05:14.6]} 33... d2 {[%clk 0:04:59.3]} 34. Nc2 {[%clk 0:04:49.9]} 34... cxb2 {[%clk 0:04:50.6]} 35. Ne3 {[%clk 0:04:41]} 35... Qd3 {[%clk 0:04:43]} 36. Kg4 {[%clk 0:04:16.7]} 36... b1=Q {[%clk 0:04:37.6]} 37. Rxb1 {[%clk 0:04:15.3]} 37... Qxb1 {[%clk 0:04:35.6]} 38. f5 {[%clk 0:04:10]} 38... d1=Q+ {[%clk 0:04:29.3]} 39. Nxd1 {[%clk 0:04:06.1]} 39... Qxd1+ {[%clk 0:04:27.8]} 40. f3 {[%clk 0:04:03.8]} 0-1

[Event "Live Chess"]
[Site "Chess.com"]
[Date "2011.01.26"]
[Round "-"]
[White "hipposcottimus"]
[Black "yankee5"]
[Result "1-0"]
[CurrentPosition "1k1r2r1/pQ3p2/B1p5/4p2p/4P1b1/2N5/PPP3PP/R5K1 b - -"]
[Timezone "UTC"]
[ECO "C40"]
[ECOUrl "https://www.chess.com/openings/Kings-Pawn-Opening-Kings-Knight-Variation"]
[UTCDate "2011.01.26"]
[UTCTime "02:11:04"]
[WhiteElo "1442"]
[BlackElo "1249"]
[TimeControl "600"]
[Termination "hipposcottimus won by checkmate"]
[StartTime "02:11:04"]
[EndDate "2011.01.26"]
[EndTime "02:16:24"]
[Link "https://www.chess.com/game/live/91420643"]

1. e4 {[%clk 0:10:00]} 1... e5 {[%clk 0:10:00]} 2. Nf3 {[%clk 0:09:58.1]} 2... Bd6 {[%clk 0:09:58.2]} 3. d4 {[%clk 0:09:56.1]} 3... Nf6 {[%clk 0:09:55.6]} 4. dxe5 {[%clk 0:09:54.1]} 4... Bxe5 {[%clk 0:09:45.8]} 5. Nxe5 {[%clk 0:09:51]} 5... Qe7 {[%clk 0:09:45.4]} 6. f4 {[%clk 0:09:45]} 6... g5 {[%clk 0:09:39]} 7. Bd3 {[%clk 0:09:38.2]} 7... gxf4 {[%clk 0:09:33.3]} 8. Bxf4 {[%clk 0:09:37.1]} 8... d6 {[%clk 0:09:23.7]} 9. O-O {[%clk 0:09:04.1]} 9... Bg4 {[%clk 0:09:21.6]} 10. Qe1 {[%clk 0:08:55.8]} 10... dxe5 {[%clk 0:09:15.4]} 11. Bg5 {[%clk 0:08:54.4]} 11... Nbd7 {[%clk 0:09:06.5]} 12. Nc3 {[%clk 0:08:49.9]} 12... c6 {[%clk 0:08:39.6]} 13. Qh4 {[%clk 0:08:15.1]} 13... h5 {[%clk 0:08:08.7]} 14. Bxf6 {[%clk 0:08:10]} 14... Nxf6 {[%clk 0:07:58.8]} 15. Rxf6 {[%clk 0:08:09.4]} 15... O-O-O {[%clk 0:07:42.1]} 16. Rxc6+ {[%clk 0:08:04.6]} 16... bxc6 {[%clk 0:07:40]} 17. Qxe7 {[%clk 0:08:02.6]} 17... Rhg8 {[%clk 0:07:16.7]} 18. Ba6+ {[%clk 0:07:51.4]} 18... Kb8 {[%clk 0:07:00.7]} 19. Qb7# {[%clk 0:07:49]} 1-0

[Event "Live Chess"]
[Site "Chess.com"]
[Date "2011.01.26"]
[Round "-"]
[White "yankee5"]
[Black "hipposcottimus"]
[Result "0-1"]
[CurrentPosition "4k3/pR3p1p/2pb1p2/P2b4/3K2r1/2P4r/8/8 w - -"]
[Timezone "UTC"]
[ECO "C23"]
[ECOUrl "https://www.chess.com/openings/Bishops-Opening-2...Nc6"]
[UTCDate "2011.01.26"]
[UTCTime "02:06:07"]
[WhiteElo "1253"]
[BlackElo "1438"]
[TimeControl "600"]
[Termination "hipposcottimus won by checkmate"]
[StartTime "02:06:07"]
[EndDate "2011.01.26"]
[EndTime "02:10:47"]
[Link "https://www.chess.com/game/live/91419492"]

1. e4 {[%clk 0:10:00]} 1... e5 {[%clk 0:10:00]} 2. Bc4 {[%clk 0:09:58.7]} 2... Nc6 {[%clk 0:09:57.5]} 3. c3 {[%clk 0:09:56.8]} 3... Nf6 {[%clk 0:09:55.6]} 4. Qf3 {[%clk 0:09:54.2]} 4... d5 {[%clk 0:09:52.6]} 5. Bb5 {[%clk 0:09:52.3]} 5... dxe4 {[%clk 0:09:46.1]} 6. Qg3 {[%clk 0:09:38.1]} 6... Bd7 {[%clk 0:09:36.3]} 7. Bxc6 {[%clk 0:09:33.2]} 7... Bxc6 {[%clk 0:09:31.4]} 8. Qxe5+ {[%clk 0:09:31.9]} 8... Be7 {[%clk 0:09:30.4]} 9. d4 {[%clk 0:09:26.8]} 9... exd3 {[%clk 0:09:18.7]} 10. Bg5 {[%clk 0:09:21.2]} 10... Bxg2 {[%clk 0:09:00.6]} 11. Bxf6 {[%clk 0:09:19.2]} 11... gxf6 {[%clk 0:08:58.4]} 12. Qd4 {[%clk 0:09:15.6]} 12... Bxh1 {[%clk 0:08:49.5]} 13. Qxd8+ {[%clk 0:09:12.2]} 13... Rxd8 {[%clk 0:08:49.3]} 14. f3 {[%clk 0:09:04]} 14... Rg8 {[%clk 0:08:48.1]} 15. Nh3 {[%clk 0:08:58.7]} 15... Bxf3 {[%clk 0:08:44.5]} 16. Kf2 {[%clk 0:08:54.8]} 16... Bg4 {[%clk 0:08:37]} 17. Nf4 {[%clk 0:08:49.2]} 17... d2 {[%clk 0:08:33.5]} 18. Nxd2 {[%clk 0:08:35.2]} 18... Rxd2+ {[%clk 0:08:30.7]} 19. Ke3 {[%clk 0:08:30.8]} 19... Rxb2 {[%clk 0:08:25.2]} 20. a4 {[%clk 0:08:24.6]} 20... Rxh2 {[%clk 0:08:23.2]} 21. a5 {[%clk 0:08:19.5]} 21... Bc5+ {[%clk 0:08:21.3]} 22. Kd3 {[%clk 0:08:11.3]} 22... Bd6 {[%clk 0:08:04]} 23. Nd5 {[%clk 0:08:06.7]} 23... Rh3+ {[%clk 0:07:56.4]} 24. Kc4 {[%clk 0:08:05.1]} 24... Be6 {[%clk 0:07:54.4]} 25. Rb1 {[%clk 0:07:58]} 25... c6 {[%clk 0:07:51.7]} 26. Rxb7 {[%clk 0:07:54.2]} 26... Bxd5+ {[%clk 0:07:47]} 27. Kd4 {[%clk 0:07:51.2]} 27... Rg4# {[%clk 0:07:42.6]} 0-1